[Event "Late-Titled-Tuesday-Blitz-May-28-2024"]
[Site "Chess.com"]
[Date "2024.05.28"]
[Round "3"]
[White "Grischuk"]
[Black "CarlosjPineror"]
[Result "1-0"]
[WhiteElo "3137"]
[BlackElo "2775"]
[TimeControl "180+1"]
[EndTime "14:28:36 PDT"]
[Termination "Grischuk won by resignation"]

1. d4 {[%clk 0:03:00.9]} 1... Nf6 {[%clk 0:02:59.7]} 2. c4 {[%clk 0:03:00.7]}
2... g6 {[%clk 0:02:59.9]} 3. g3 {[%clk 0:03:00.9]} 3... d6 {[%clk 0:03:00.2]}
4. Bg2 {[%clk 0:03:00.8]} 4... Bg7 {[%clk 0:03:00.9]} 5. Nc3 {[%clk 0:03:01]}
5... O-O {[%clk 0:03:01.7]} 6. Nf3 {[%clk 0:03:01.5]} 6... c5 {[%clk 0:03:02.3]}
7. dxc5 {[%clk 0:02:55.6]} 7... dxc5 {[%clk 0:03:03.2]} 8. Qxd8 {[%clk
0:02:55.7]} 8... Rxd8 {[%clk 0:03:03.8]} 9. Ne5 {[%clk 0:02:56.2]} 9... Ne8
{[%clk 0:03:04.1]} 10. Nd3 {[%clk 0:02:32.4]} 10... Na6 {[%clk 0:02:57.7]} 11.
Bg5 {[%clk 0:02:16.8]} 11... Kf8 {[%clk 0:02:47.8]} 12. Nd5 {[%clk 0:02:07.5]}
12... f6 {[%clk 0:02:46.2]} 13. Be3 {[%clk 0:02:03.5]} 13... Nd6 {[%clk
0:02:24.1]} 14. Nxc5 {[%clk 0:01:53.4]} 14... Nxc4 {[%clk 0:02:11.4]} 15. Nxa6
{[%clk 0:01:51.4]} 15... bxa6 {[%clk 0:02:00.8]} 16. Bc5 {[%clk 0:01:42.5]}
16... Nd6 {[%clk 0:01:10.2]} 17. Nxe7 {[%clk 0:01:22.5]} 17... Kxe7 {[%clk
0:01:03.6]} 18. Bxa8 {[%clk 0:01:20.9]} 18... Bh3 {[%clk 0:01:04.3]} 19. Bf3
{[%clk 0:01:08.1]} 19... f5 {[%clk 0:01:01.4]} 20. Rd1 {[%clk 0:00:47.2]} 20...
Bxb2 {[%clk 0:00:55.5]} 21. Rxd6 {[%clk 0:00:40.2]} 21... Rxd6 {[%clk
0:00:56.4]} 22. Bxd6+ {[%clk 0:00:40.6]} 22... Kxd6 {[%clk 0:00:56.9]} 23. Kd2
{[%clk 0:00:41.5]} 23... Bd4 {[%clk 0:00:57.1]} 24. e3 {[%clk 0:00:41]} 24...
Bc5 {[%clk 0:00:56.4]} 25. Rb1 {[%clk 0:00:38.8]} 25... a5 {[%clk 0:00:51.5]}
26. Rb7 {[%clk 0:00:35.8]} 26... Bf1 {[%clk 0:00:44.8]} 27. Be2 {[%clk
0:00:22.7]} 27... Bg2 {[%clk 0:00:44.6]} 28. Rxh7 {[%clk 0:00:23]} 28... Bb4+
{[%clk 0:00:45.1]} 29. Kc2 {[%clk 0:00:22]} 29... Be1 {[%clk 0:00:45.8]} 30. f3
{[%clk 0:00:19.3]} 30... g5 {[%clk 0:00:45.9]} 31. Rh5 {[%clk 0:00:16.1]} 31...
Ke5 {[%clk 0:00:28]} 32. Rxg5 {[%clk 0:00:15.4]} 32... Kf6 {[%clk 0:00:28.9]}
33. Rh5 {[%clk 0:00:13.1]} 33... Bb4 {[%clk 0:00:28.8]} 34. Bd3 {[%clk
0:00:07.6]} 34... f4 {[%clk 0:00:26.4]} 35. Rf5+ {[%clk 0:00:07.7]} 35... Ke6
{[%clk 0:00:26.5]} 36. Rxf4 {[%clk 0:00:08.6]} 36... Bc5 {[%clk 0:00:24.8]} 37.
Kd2 {[%clk 0:00:06.7]} 1-0

[Event "Late-Titled-Tuesday-Blitz-May-28-2024"]
[Site "Chess.com"]
[Date "2024.05.28"]
[Round "3"]
[White "Chaubunagungamaug1"]
[Black "arctic_t00"]
[Result "0-1"]
[WhiteElo "2466"]
[BlackElo "2645"]
[TimeControl "180+1"]
[EndTime "14:28:40 PDT"]
[Termination "arctic_t00 won by resignation"]

1. d4 {[%clk 0:03:00.9]} 1... e6 {[%clk 0:02:58.3]} 2. c4 {[%clk 0:02:59.4]}
2... Bb4+ {[%clk 0:02:58.3]} 3. Bd2 {[%clk 0:02:56.9]} 3... a5 {[%clk
0:02:58.2]} 4. Nc3 {[%clk 0:02:56]} 4... Nf6 {[%clk 0:02:55.8]} 5. Nf3 {[%clk
0:02:49.9]} 5... b6 {[%clk 0:02:55.3]} 6. g3 {[%clk 0:02:47.1]} 6... Bb7 {[%clk
0:02:54.8]} 7. Bg2 {[%clk 0:02:47.4]} 7... O-O {[%clk 0:02:55.4]} 8. O-O {[%clk
0:02:47.5]} 8... d6 {[%clk 0:02:55.7]} 9. a3 {[%clk 0:02:40.4]} 9... Bxc3 {[%clk
0:02:55.1]} 10. Bxc3 {[%clk 0:02:41.3]} 10... Ne4 {[%clk 0:02:48.9]} 11. Be1
{[%clk 0:02:27.4]} 11... Nd7 {[%clk 0:02:44.7]} 12. Qc2 {[%clk 0:02:11]} 12...
f5 {[%clk 0:02:35.2]} 13. Rd1 {[%clk 0:01:29]} 13... a4 {[%clk 0:02:29.7]} 14.
d5 {[%clk 0:01:27.4]} 14... e5 {[%clk 0:02:28.3]} 15. Nd2 {[%clk 0:01:26.9]}
15... Nxd2 {[%clk 0:02:24.1]} 16. Bxd2 {[%clk 0:01:27.8]} 16... Nc5 {[%clk
0:02:23.3]} 17. Bc3 {[%clk 0:01:24.7]} 17... Ba6 {[%clk 0:02:19.1]} 18. Bb4
{[%clk 0:01:19.2]} 18... Qe8 {[%clk 0:02:10.3]} 19. Rfe1 {[%clk 0:01:04.2]}
19... Nb3 {[%clk 0:02:07.9]} 20. e3 {[%clk 0:00:57.2]} 20... Qh5 {[%clk
0:02:02]} 21. Bf1 {[%clk 0:00:44.4]} 21... Rf7 {[%clk 0:01:58.6]} 22. Be2 {[%clk
0:00:43.4]} 22... Qg5 {[%clk 0:01:54]} 23. f4 {[%clk 0:00:40.3]} 23... Qe7
{[%clk 0:01:53]} 24. Bf3 {[%clk 0:00:39.5]} 24... Re8 {[%clk 0:01:41.3]} 25. Kf2
{[%clk 0:00:34.8]} 25... Qd7 {[%clk 0:01:41]} 26. Bh5 {[%clk 0:00:32]} 26... g6
{[%clk 0:01:40.8]} 27. Bf3 {[%clk 0:00:32.7]} 27... Rfe7 {[%clk 0:01:41.2]} 28.
Bc3 {[%clk 0:00:27.6]} 28... Nc5 {[%clk 0:01:33.6]} 29. Bb4 {[%clk 0:00:26.3]}
29... exf4 {[%clk 0:01:29.4]} 30. exf4 {[%clk 0:00:26.3]} 30... Ne4+ {[%clk
0:01:29.2]} 31. Kg2 {[%clk 0:00:25]} 31... h5 {[%clk 0:01:18.5]} 32. h4 {[%clk
0:00:23.9]} 32... Kh7 {[%clk 0:01:18.2]} 33. Re3 {[%clk 0:00:23.8]} 33... Nf6
{[%clk 0:01:07.6]} 34. Rxe7+ {[%clk 0:00:22.1]} 34... Rxe7 {[%clk 0:01:07.3]}
35. Re1 {[%clk 0:00:20.8]} 35... Qe8 {[%clk 0:01:04.4]} 36. Rxe7+ {[%clk
0:00:20.4]} 36... Qxe7 {[%clk 0:01:05.3]} 37. Qxa4 {[%clk 0:00:20.5]} 37... Bxc4
{[%clk 0:00:54.5]} 38. Qc6 {[%clk 0:00:14.1]} 38... Be2 {[%clk 0:00:49]} 39. Bc3
{[%clk 0:00:14.5]} 39... Bxf3+ {[%clk 0:00:48.1]} 40. Kxf3 {[%clk 0:00:15.4]}
40... Qe4+ {[%clk 0:00:47]} 41. Kf2 {[%clk 0:00:15.8]} 41... Ng4+ {[%clk
0:00:46.9]} 42. Kf1 {[%clk 0:00:13.6]} 42... Qf3+ {[%clk 0:00:41.9]} 43. Ke1
{[%clk 0:00:13.6]} 43... Qf2+ {[%clk 0:00:38.6]} 0-1

[Event "Late-Titled-Tuesday-Blitz-May-28-2024"]
[Site "Chess.com"]
[Date "2024.05.28"]
[Round "3"]
[White "egnfanclub"]
[Black "j2806"]
[Result "1-0"]
[WhiteElo "2341"]
[BlackElo "2002"]
[TimeControl "180+1"]
[EndTime "14:28:41 PDT"]
[Termination "egnfanclub won by resignation"]

1. e4 {[%clk 0:03:00.9]} 1... c5 {[%clk 0:02:51]} 2. Nc3 {[%clk 0:03:00.4]} 2...
Nc6 {[%clk 0:02:49.2]} 3. f4 {[%clk 0:03:01.3]} 3... e6 {[%clk 0:02:48.5]} 4.
Nf3 {[%clk 0:03:01.7]} 4... Be7 {[%clk 0:02:39.1]} 5. Bc4 {[%clk 0:02:50.5]}
5... Nf6 {[%clk 0:02:37.6]} 6. e5 {[%clk 0:02:49.8]} 6... Ng8 {[%clk 0:02:25.1]}
7. O-O {[%clk 0:02:40.6]} 7... d5 {[%clk 0:02:23.1]} 8. Bb5 {[%clk 0:02:40.4]}
8... Bd7 {[%clk 0:02:21.7]} 9. d3 {[%clk 0:02:29.1]} 9... a6 {[%clk 0:02:12.3]}
10. Bxc6 {[%clk 0:02:29.1]} 10... Bxc6 {[%clk 0:02:12.3]} 11. f5 {[%clk
0:02:17.1]} 11... exf5 {[%clk 0:02:02.9]} 12. d4 {[%clk 0:02:14.1]} 12... g6
{[%clk 0:01:44.3]} 13. Be3 {[%clk 0:02:07.5]} 13... b6 {[%clk 0:01:38.6]} 14.
Qd2 {[%clk 0:01:59.8]} 14... Qd7 {[%clk 0:01:34.3]} 15. Qf2 {[%clk 0:01:45.2]}
15... c4 {[%clk 0:01:29.5]} 16. b3 {[%clk 0:01:20.4]} 16... b5 {[%clk
0:01:28.1]} 17. bxc4 {[%clk 0:01:04.9]} 17... bxc4 {[%clk 0:01:25.2]} 18. Rab1
{[%clk 0:01:02.6]} 18... a5 {[%clk 0:01:19.3]} 19. Ng5 {[%clk 0:00:56.8]} 19...
h6 {[%clk 0:01:13.9]} 20. Nh3 {[%clk 0:00:56.5]} 20... Bb4 {[%clk 0:01:10.6]}
21. Ne2 {[%clk 0:00:51]} 21... Ne7 {[%clk 0:01:06.8]} 22. c3 {[%clk 0:00:48.7]}
22... Ba3 {[%clk 0:01:06.3]} 23. Nhf4 {[%clk 0:00:34.5]} 23... Nc8 {[%clk
0:00:55.7]} 24. Ng3 {[%clk 0:00:31.2]} 24... Ra7 {[%clk 0:00:50.5]} 25. Rfe1
{[%clk 0:00:26.3]} 25... O-O {[%clk 0:00:44.1]} 26. e6 {[%clk 0:00:21.5]} 26...
fxe6 {[%clk 0:00:40.3]} 27. Nxg6 {[%clk 0:00:21.4]} 27... Rf6 {[%clk 0:00:31.8]}
28. Ne5 {[%clk 0:00:21.3]} 28... Qe8 {[%clk 0:00:29]} 29. Qf3 {[%clk 0:00:20]}
29... Bf8 {[%clk 0:00:23.5]} 30. Nh5 {[%clk 0:00:19.4]} 30... Rff7 {[%clk
0:00:20]} 31. Nxf7 {[%clk 0:00:19.3]} 31... Kxf7 {[%clk 0:00:20.3]} 32. Bf4
{[%clk 0:00:18.6]} 32... Rb7 {[%clk 0:00:18.4]} 33. Be5 {[%clk 0:00:15.6]} 33...
Ne7 {[%clk 0:00:16.7]} 34. Nf4 {[%clk 0:00:15.2]} 34... Ng6 {[%clk 0:00:16.6]}
35. Qh5 {[%clk 0:00:15.1]} 35... Kg8 {[%clk 0:00:11.1]} 36. Qxg6+ {[%clk
0:00:14.6]} 36... Qxg6 {[%clk 0:00:09.6]} 37. Nxg6 {[%clk 0:00:15.5]} 37... Rxb1
{[%clk 0:00:09.6]} 38. Rxb1 {[%clk 0:00:15]} 1-0

[Event "Late-Titled-Tuesday-Blitz-May-28-2024"]
[Site "Chess.com"]
[Date "2024.05.28"]
[Round "3"]
[White "Polish_fighter3000"]
[Black "RandomNoob04"]
[Result "1-0"]
[WhiteElo "3121"]
[BlackElo "2770"]
[TimeControl "180+1"]
[EndTime "14:28:43 PDT"]
[Termination "Polish_fighter3000 won on time"]

1. e4 {[%clk 0:03:00.9]} 1... d5 {[%clk 0:03:00.4]} 2. exd5 {[%clk 0:02:59.8]}
2... Qxd5 {[%clk 0:03:01.3]} 3. Nc3 {[%clk 0:02:58.5]} 3... Qa5 {[%clk
0:03:01.6]} 4. g3 {[%clk 0:02:56.9]} 4... Nf6 {[%clk 0:03:00.5]} 5. Bg2 {[%clk
0:02:57]} 5... e5 {[%clk 0:02:57.6]} 6. d3 {[%clk 0:02:51.2]} 6... c6 {[%clk
0:02:52.8]} 7. Nf3 {[%clk 0:02:49.4]} 7... Bd6 {[%clk 0:02:52.1]} 8. O-O {[%clk
0:02:48.1]} 8... O-O {[%clk 0:02:52.6]} 9. h3 {[%clk 0:02:44.6]} 9... h6 {[%clk
0:02:52]} 10. Re1 {[%clk 0:02:44.5]} 10... Qc7 {[%clk 0:02:49.8]} 11. g4 {[%clk
0:02:32.6]} 11... Be6 {[%clk 0:02:42.9]} 12. Ne2 {[%clk 0:02:20.3]} 12... Nbd7
{[%clk 0:02:15.9]} 13. Ng3 {[%clk 0:02:19.2]} 13... Rfe8 {[%clk 0:02:13.9]} 14.
Bd2 {[%clk 0:02:08]} 14... Bd5 {[%clk 0:02:05.5]} 15. c4 {[%clk 0:02:00.4]}
15... Be6 {[%clk 0:02:04.2]} 16. Bc3 {[%clk 0:01:58]} 16... Rad8 {[%clk
0:01:53.2]} 17. Qc2 {[%clk 0:01:47.2]} 17... b5 {[%clk 0:01:33.6]} 18. b3 {[%clk
0:01:41.9]} 18... Nh7 {[%clk 0:00:39.3]} 19. Ne4 {[%clk 0:01:23.7]} 19... Bf8
{[%clk 0:00:39.8]} 20. Re3 {[%clk 0:01:20.3]} 20... f6 {[%clk 0:00:30.6]} 21. d4
{[%clk 0:00:40.9]} 21... exd4 {[%clk 0:00:30]} 22. Nxd4 {[%clk 0:00:40.6]} 22...
bxc4 {[%clk 0:00:27.6]} 23. Nxf6+ {[%clk 0:00:38.3]} 23... Nhxf6 {[%clk
0:00:20.7]} 24. Nxe6 {[%clk 0:00:38]} 24... Rxe6 {[%clk 0:00:14]} 25. Rxe6
{[%clk 0:00:38.9]} 25... cxb3 {[%clk 0:00:13.5]} 26. axb3 {[%clk 0:00:31.8]}
26... Qf4 {[%clk 0:00:11.5]} 27. Ra4 {[%clk 0:00:30.2]} 27... Qg5 {[%clk
0:00:09.7]} 28. Ra5 {[%clk 0:00:28.8]} 28... Qf4 {[%clk 0:00:08.1]} 29. Rf5
{[%clk 0:00:28.2]} 29... Qb8 {[%clk 0:00:05.8]} 30. Bxc6 {[%clk 0:00:15.6]}
30... Nc5 {[%clk 0:00:01]} 31. Rexf6 {[%clk 0:00:10.6]} 31... gxf6 {[%clk
0:00:01.9]} 32. Rxc5 {[%clk 0:00:10.6]} 1-0

[Event "Late-Titled-Tuesday-Blitz-May-28-2024"]
[Site "Chess.com"]
[Date "2024.05.28"]
[Round "3"]
[White "Synctel"]
[Black "chess_sharparchitect"]
[Result "1-0"]
[WhiteElo "2077"]
[BlackElo "2352"]
[TimeControl "180+1"]
[EndTime "14:28:45 PDT"]
[Termination "Synctel won on time"]

1. d4 {[%clk 0:03:00.9]} 1... Nf6 {[%clk 0:02:59.2]} 2. Nf3 {[%clk 0:03:01.1]}
2... d5 {[%clk 0:02:57.4]} 3. e3 {[%clk 0:03:00.5]} 3... c5 {[%clk 0:02:50]} 4.
c3 {[%clk 0:03:00]} 4... Nc6 {[%clk 0:02:49]} 5. dxc5 {[%clk 0:02:59.6]} 5... a5
{[%clk 0:02:48.8]} 6. Bb5 {[%clk 0:02:58.5]} 6... e6 {[%clk 0:02:31.7]} 7. b4
{[%clk 0:02:56.5]} 7... Bd7 {[%clk 0:02:26.1]} 8. Bxc6 {[%clk 0:02:29.8]} 8...
Bxc6 {[%clk 0:02:17.2]} 9. a4 {[%clk 0:02:20.6]} 9... Ne4 {[%clk 0:01:59.2]} 10.
Bb2 {[%clk 0:02:10.1]} 10... Qf6 {[%clk 0:01:46.2]} 11. Qc2 {[%clk 0:02:06.4]}
11... Qg6 {[%clk 0:01:40]} 12. O-O {[%clk 0:02:00.7]} 12... Be7 {[%clk
0:01:04.3]} 13. b5 {[%clk 0:01:41.8]} 13... Bd7 {[%clk 0:01:03.5]} 14. Ne5
{[%clk 0:01:42]} 14... Qg5 {[%clk 0:00:58.1]} 15. Nxd7 {[%clk 0:01:34.7]} 15...
Kxd7 {[%clk 0:00:59]} 16. c4 {[%clk 0:01:25.2]} 16... Bxc5 {[%clk 0:00:50.9]}
17. cxd5 {[%clk 0:01:23.6]} 17... exd5 {[%clk 0:00:50.8]} 18. Nd2 {[%clk
0:01:11.6]} 18... Nxd2 {[%clk 0:00:32]} 19. Qxd2 {[%clk 0:00:52.3]} 19... Rhd8
{[%clk 0:00:30.8]} 20. Rac1 {[%clk 0:00:47.6]} 20... b6 {[%clk 0:00:29.9]} 21.
Bd4 {[%clk 0:00:44.3]} 21... Bb4 {[%clk 0:00:27.4]} 22. Qd3 {[%clk 0:00:42.8]}
22... Rac8 {[%clk 0:00:16.4]} 23. Bxb6 {[%clk 0:00:38.2]} 23... Re8 {[%clk
0:00:09.2]} 24. Bd4 {[%clk 0:00:35.2]} 24... Rxc1 {[%clk 0:00:07.3]} 25. Rxc1
{[%clk 0:00:34.8]} 25... Re6 {[%clk 0:00:06.8]} 26. g3 {[%clk 0:00:31.9]} 26...
g6 {[%clk 0:00:03.1]} 27. Qc2 {[%clk 0:00:24.3]} 27... Qd8 {[%clk 0:00:03]} 28.
b6 {[%clk 0:00:20.6]} 28... Ke8 {[%clk 0:00:01.2]} 29. Qd3 {[%clk 0:00:20]}
29... Rxb6 {[%clk 0:00:01]} 30. Bxb6 {[%clk 0:00:19.1]} 30... Qxb6 {[%clk
0:00:01.3]} 31. Qxd5 {[%clk 0:00:18]} 31... Kf8 {[%clk 0:00:01.7]} 32. Rc8+
{[%clk 0:00:17]} 32... Kg7 {[%clk 0:00:01.9]} 33. Qd4+ {[%clk 0:00:15.1]} 33...
Qxd4 {[%clk 0:00:02.2]} 34. exd4 {[%clk 0:00:15.9]} 34... Kf6 {[%clk 0:00:02.7]}
35. Re8 {[%clk 0:00:14.9]} 1-0

[Event "Late-Titled-Tuesday-Blitz-May-28-2024"]
[Site "Chess.com"]
[Date "2024.05.28"]
[Round "3"]
[White "nocnypako"]
[Black "h4parah5"]
[Result "1-0"]
[WhiteElo "2706"]
[BlackElo "2977"]
[TimeControl "180+1"]
[EndTime "14:28:47 PDT"]
[Termination "nocnypako won by resignation"]

1. d4 {[%clk 0:03:00.9]} 1... Nf6 {[%clk 0:02:58.6]} 2. Bf4 {[%clk 0:03:01.1]}
2... c5 {[%clk 0:02:57.8]} 3. e3 {[%clk 0:03:00.8]} 3... Nd5 {[%clk 0:02:53.8]}
4. Bg3 {[%clk 0:03:00.3]} 4... Qb6 {[%clk 0:02:53.4]} 5. c4 {[%clk 0:03:00.6]}
5... Qxb2 {[%clk 0:02:47.8]} 6. cxd5 {[%clk 0:03:00.8]} 6... Qxa1 {[%clk
0:02:47.8]} 7. Qc2 {[%clk 0:03:01.4]} 7... d6 {[%clk 0:02:31]} 8. Nf3 {[%clk
0:03:01.4]} 8... g6 {[%clk 0:02:29.1]} 9. Bb5+ {[%clk 0:02:02.7]} 9... Bd7
{[%clk 0:02:28.1]} 10. Bxd7+ {[%clk 0:01:58.8]} 10... Nxd7 {[%clk 0:02:29]} 11.
O-O {[%clk 0:01:58.8]} 11... cxd4 {[%clk 0:02:03.9]} 12. exd4 {[%clk 0:01:58.8]}
12... Bg7 {[%clk 0:01:56.9]} 13. Nc3 {[%clk 0:01:48.3]} 13... Qxf1+ {[%clk
0:01:53.5]} 14. Kxf1 {[%clk 0:01:49.2]} 14... O-O {[%clk 0:01:53.2]} 15. Bf4
{[%clk 0:01:38.2]} 15... Rac8 {[%clk 0:01:49.9]} 16. Qb3 {[%clk 0:01:38.3]}
16... Nb6 {[%clk 0:01:48.9]} 17. Nb5 {[%clk 0:01:28.2]} 17... Ra8 {[%clk
0:01:35.2]} 18. Nxa7 {[%clk 0:01:06.9]} 18... Rxa7 {[%clk 0:01:36.1]} 19. Qxb6
{[%clk 0:01:06.9]} 19... Rfa8 {[%clk 0:01:30.8]} 20. g3 {[%clk 0:00:54.2]} 20...
Bf6 {[%clk 0:01:30.2]} 21. h4 {[%clk 0:00:51.4]} 21... h5 {[%clk 0:01:27.4]} 22.
Kg2 {[%clk 0:00:50.8]} 22... Kg7 {[%clk 0:01:26.8]} 23. Be3 {[%clk 0:00:39.5]}
23... Rxa2 {[%clk 0:01:24.5]} 24. Qxb7 {[%clk 0:00:38.3]} 24... R2a7 {[%clk
0:01:25]} 25. Qc6 {[%clk 0:00:36.9]} 25... Ra6 {[%clk 0:01:24.8]} 26. Qc2 {[%clk
0:00:36.8]} 26... Ra2 {[%clk 0:01:24.4]} 27. Qe4 {[%clk 0:00:37.3]} 27... R8a3
{[%clk 0:01:21.2]} 28. Bg5 {[%clk 0:00:33.9]} 28... Rc3 {[%clk 0:01:17]} 29.
Bxf6+ {[%clk 0:00:27.7]} 29... exf6 {[%clk 0:01:17.9]} 30. Qf4 {[%clk
0:00:20.3]} 30... Rcc2 {[%clk 0:01:17.7]} 31. Ng1 {[%clk 0:00:20.2]} 31... Rcb2
{[%clk 0:01:09.6]} 32. Nh3 {[%clk 0:00:19.9]} 32... Rb6 {[%clk 0:01:09.1]} 33.
Qe3 {[%clk 0:00:19.4]} 33... Ra4 {[%clk 0:01:07.3]} 34. Nf4 {[%clk 0:00:18.2]}
34... Ra7 {[%clk 0:01:06.1]} 35. Qe8 {[%clk 0:00:17.1]} 35... Rb2 {[%clk
0:01:04.2]} 36. Qd8 {[%clk 0:00:13.8]} 36... Raa2 {[%clk 0:01:03.3]} 37. Nh3
{[%clk 0:00:10.8]} 37... Ra6 {[%clk 0:01:02.7]} 38. Qd7 {[%clk 0:00:10.4]} 38...
Kg8 {[%clk 0:00:59.8]} 39. Qd8+ {[%clk 0:00:10.4]} 39... Kg7 {[%clk 0:00:59.6]}
40. Qe7 {[%clk 0:00:11.1]} 40... Kg8 {[%clk 0:00:50.8]} 41. Qxf6 {[%clk
0:00:09.6]} 41... Raa2 {[%clk 0:00:49.9]} 42. Qd8+ {[%clk 0:00:09.2]} 42... Kg7
{[%clk 0:00:49.6]} 43. Qe7 {[%clk 0:00:09.8]} 43... Kg8 {[%clk 0:00:49.5]} 44.
Qe8+ {[%clk 0:00:07.8]} 44... Kg7 {[%clk 0:00:48.9]} 45. Qd7 {[%clk 0:00:08.4]}
45... Rd2 {[%clk 0:00:47.1]} 46. Qxd6 {[%clk 0:00:07.8]} 46... Kg8 {[%clk
0:00:47.5]} 47. Qd8+ {[%clk 0:00:07.7]} 47... Kg7 {[%clk 0:00:47.8]} 48. Qe7
{[%clk 0:00:08]} 48... Re2 {[%clk 0:00:46.4]} 49. Qc7 {[%clk 0:00:07.2]} 49...
Rac2 {[%clk 0:00:44.6]} 50. Qf4 {[%clk 0:00:06.6]} 50... Rcd2 {[%clk 0:00:43.4]}
51. Ng5 {[%clk 0:00:06.5]} 1-0

[Event "Late-Titled-Tuesday-Blitz-May-28-2024"]
[Site "Chess.com"]
[Date "2024.05.28"]
[Round "3"]
[White "neilbhav"]
[Black "Let_it_be_1"]
[Result "0-1"]
[WhiteElo "2422"]
[BlackElo "2580"]
[TimeControl "180+1"]
[EndTime "14:28:47 PDT"]
[Termination "Let_it_be_1 won by checkmate"]

1. d4 {[%clk 0:03:00.9]} 1... d5 {[%clk 0:02:59.8]} 2. c4 {[%clk 0:03:00.9]}
2... e6 {[%clk 0:03:00.2]} 3. Nc3 {[%clk 0:03:00.9]} 3... Be7 {[%clk 0:03:00.2]}
4. Nf3 {[%clk 0:02:55.2]} 4... Nf6 {[%clk 0:03:00.2]} 5. cxd5 {[%clk 0:02:54.4]}
5... exd5 {[%clk 0:03:00.2]} 6. Bg5 {[%clk 0:02:54.8]} 6... c6 {[%clk
0:03:00.4]} 7. Qc2 {[%clk 0:02:51]} 7... g6 {[%clk 0:03:00.4]} 8. e3 {[%clk
0:02:50.9]} 8... Bf5 {[%clk 0:03:00.3]} 9. Bd3 {[%clk 0:02:50.8]} 9... Bxd3
{[%clk 0:02:59.7]} 10. Qxd3 {[%clk 0:02:51.6]} 10... Nbd7 {[%clk 0:02:58.9]} 11.
O-O {[%clk 0:02:51]} 11... O-O {[%clk 0:02:58.6]} 12. a3 {[%clk 0:02:45.5]}
12... a5 {[%clk 0:02:58.4]} 13. Rad1 {[%clk 0:02:31.9]} 13... Re8 {[%clk
0:02:57.8]} 14. Rfe1 {[%clk 0:02:30.8]} 14... Ne4 {[%clk 0:02:53.6]} 15. Bxe7
{[%clk 0:02:30.2]} 15... Qxe7 {[%clk 0:02:53.8]} 16. Nd2 {[%clk 0:02:27.5]}
16... Nd6 {[%clk 0:02:41.1]} 17. f3 {[%clk 0:02:01.4]} 17... Qg5 {[%clk
0:02:27.6]} 18. e4 {[%clk 0:01:57.6]} 18... dxe4 {[%clk 0:02:17.9]} 19. Ndxe4
{[%clk 0:01:54.4]} 19... Nxe4 {[%clk 0:02:15.9]} 20. Nxe4 {[%clk 0:01:48.9]}
20... Qd5 {[%clk 0:02:11.9]} 21. Nc3 {[%clk 0:01:43]} 21... Qd6 {[%clk
0:02:05.4]} 22. Qc4 {[%clk 0:01:20.5]} 22... Nb6 {[%clk 0:01:59.5]} 23. Qc5
{[%clk 0:01:15.5]} 23... Qxc5 {[%clk 0:01:51.6]} 24. dxc5 {[%clk 0:01:15.4]}
24... Nc4 {[%clk 0:01:52.3]} 25. Rxe8+ {[%clk 0:01:05.3]} 25... Rxe8 {[%clk
0:01:51.6]} 26. Rd7 {[%clk 0:01:05.7]} 26... Nxb2 {[%clk 0:01:46]} 27. Rxb7
{[%clk 0:01:05.5]} 27... Nd3 {[%clk 0:01:45.5]} 28. Ne4 {[%clk 0:01:03.3]} 28...
Re6 {[%clk 0:01:34.9]} 29. Rd7 {[%clk 0:00:57.6]} 29... f5 {[%clk 0:01:31.8]}
30. Rxd3 {[%clk 0:00:49.3]} 30... fxe4 {[%clk 0:01:31.9]} 31. fxe4 {[%clk
0:00:49.5]} 31... Re5 {[%clk 0:01:27.4]} 32. Kf2 {[%clk 0:00:43.1]} 32... Rxc5
{[%clk 0:01:26.8]} 33. Ke3 {[%clk 0:00:43.3]} 33... Kf7 {[%clk 0:01:19.5]} 34.
Kd4 {[%clk 0:00:36.8]} 34... Rc2 {[%clk 0:01:18.7]} 35. g3 {[%clk 0:00:31.2]}
35... Ke6 {[%clk 0:01:16.6]} 36. Rc3 {[%clk 0:00:27.3]} 36... Rxc3 {[%clk
0:00:54.5]} 37. Kxc3 {[%clk 0:00:28.2]} 37... Ke5 {[%clk 0:00:55.2]} 38. Kd3
{[%clk 0:00:28.5]} 38... a4 {[%clk 0:00:49.8]} 39. h3 {[%clk 0:00:17.6]} 39...
h6 {[%clk 0:00:44.5]} 40. h4 {[%clk 0:00:15.9]} 40... g5 {[%clk 0:00:41.8]} 41.
hxg5 {[%clk 0:00:15.2]} 41... hxg5 {[%clk 0:00:41.9]} 42. Ke3 {[%clk 0:00:14.8]}
42... c5 {[%clk 0:00:39.6]} 43. Kd3 {[%clk 0:00:15.3]} 43... g4 {[%clk
0:00:39.4]} 44. Kc4 {[%clk 0:00:15.1]} 44... Kxe4 {[%clk 0:00:39.7]} 45. Kxc5
{[%clk 0:00:15.8]} 45... Kf3 {[%clk 0:00:39.6]} 46. Kb4 {[%clk 0:00:16.5]} 46...
Kxg3 {[%clk 0:00:39.7]} 47. Kxa4 {[%clk 0:00:17.4]} 47... Kf4 {[%clk 0:00:38.7]}
48. Kb5 {[%clk 0:00:18.3]} 48... g3 {[%clk 0:00:39.2]} 49. a4 {[%clk 0:00:19.2]}
49... g2 {[%clk 0:00:39.8]} 50. a5 {[%clk 0:00:19.8]} 50... g1=Q {[%clk
0:00:40.3]} 51. a6 {[%clk 0:00:20.1]} 51... Qa7 {[%clk 0:00:40.5]} 52. Ka5
{[%clk 0:00:20.9]} 52... Ke5 {[%clk 0:00:40.2]} 53. Kb5 {[%clk 0:00:21.8]} 53...
Kd5 {[%clk 0:00:40.2]} 54. Ka5 {[%clk 0:00:22.7]} 54... Kc4 {[%clk 0:00:39]} 55.
Ka4 {[%clk 0:00:19.8]} 55... Qxa6# {[%clk 0:00:39.2]} 0-1